Cogmind - Beta 10 X2 @@@ ROGUE MODE // 2020.07.12 @ 16:04:24 Player: Stryker Result: Self-destructed Performance ------------- Evolutions (7) 3500 Regions Visited (16) 3200 Robots Destroyed (310) 1550 Value Destroyed (14429) 14429 Prototype IDs (41) 820 Alien Tech Used (0) 0 Bonus (4087) 4087 TOTAL SCORE: 27586 Bonus ------- High Alert Combat Kills 3716 Follower Combat Kills 1790 Network Hubs Disabled 200 Met Imprinter 300 Met Zhirov 300 Built Enhanced Grunts 300 A7 Reached Mainframe 300 Met R17 at Cetus 500 Friendly Fire -3319 Cogmind --------- Core Integrity 1059/1300 Matter 235/300 Energy 230/990 System Corruption 17% Temperature Cool (112) Movement Immobile (Siege) Location -3/Research Parts ------- > --- POWER (1) -------- Light Quantum Reactor > --- PROPULSION (6) --- Biometal Heavy Treads Biometal Heavy Treads Biometal Heavy Treads > --- UTILITY (10) ----- Advanced Heat Sink High-capacity Storage Unit High-capacity Storage Unit High-capacity Storage Unit Advanced Energy Well Improved Light Armor Plating > --- WEAPON (4) ------- Gamma Rifle Cooled Phase Gun Railgun > --- INVENTORY (28) --- Antimatter Reactor Particle Reactor Medium Treads Medium Treads Medium Treads Advanced Medium Treads Large Storage Unit High-capacity Storage Unit Advanced Core Analyzer Advanced Cloaking Device Improved Light Armor Plating Insulated Plating EM Shield EM Dispersion Field Advanced Component Analysis Suite Improved System Restoration Module Experimental Field Recycling Unit (2) Hacking Drone Bay (1/1) Gamma Rifle Plasma Rifle Enhanced Nova Cannon Fusion Bomb Launcher Force Lance Peak State ------------ > --- POWER ------------ Antimatter Reactor > --- PROPULSION ------- Biometal Heavy Treads Biometal Heavy Treads Biometal Heavy Treads > --- UTILITY ---------- Advanced Heat Sink High-capacity Storage Unit High-capacity Storage Unit High-capacity Storage Unit Advanced Energy Well Advanced Signal Interpreter Advanced Cloaking Device EM Shield EM Dispersion Field Hacking Drone Bay > --- WEAPON ----------- Cooled Phase Gun Enhanced Nova Cannon Enhanced Nova Cannon Railgun > --- INVENTORY -------- Antimatter Reactor Particle Reactor Light Quantum Reactor Medium Treads Medium Treads Biometal Heavy Treads Advanced Heat Sink Large Storage Unit High-capacity Storage Unit Advanced Core Analyzer Insulated Plating Focal Shield Advanced Component Analysis Suite Improved System Restoration Module Experimental Field Recycling Unit Railgun Fusion Bomb Launcher Fusion Bomb Launcher Force Lance [Rating: 157] Favorites ----------- Power Angular Momentum Engine Engine Angular Momentum Engine Power Core Enhanced Fission Core Reactor Fusion Reactor Propulsion Armored Wheel Treads Armored Treads Leg Flexi-carbon Leg Wheel Armored Wheel Utility Large Storage Unit Device Advanced Heat Sink Storage Large Storage Unit Processor Advanced Core Analyzer Protection Centrium Medium Armor Plating Weapon Improved KE Penetrator Energy Gun Plasma Rifle Energy Cannon Enhanced Nova Cannon Ballistic Gun Improved KE Penetrator Ballistic Cannon Heavy Flak Cannon Launcher Precision Rocket Launcher Slashing Weapon Phasing Sabre Piercing Weapon Force Lance Build | -11 -10 -9 -9 -7 -6 -6 -6 -6 -6 -6 -5 -5 -5 -4 -4 -3 ------- Run | Scr Mat Mat Min Zio Pro Fac Ext Cet Arc Hub Fac Upp Upp Fac Arm Res Slots Evolved 14 | . . 2 . . . 6 . . . . 2 . . 2 . 2 Power . | . . . . . . . . . . . . . . . . . Propulsion 4 | . . 1 . . . 2 . . . . . . . . . 1 Utility 8 | . . 1 . . . 2 . . . . 2 . . 2 . 1 Weapon 2 | . . . . . . 2 . . . . . . . . . . Parts Attached 403 | 2 11 11 3 4 5 32 19 14 2 23 43 8 . 52 146 28 Power 17 | . 2 2 . . . 3 . . . . 5 . . 1 3 1 Engine 7 | . 2 1 . . . 2 . . . . 2 . . . . . Core 4 | . . 1 . . . 1 . . . . . . . 1 1 . Reactor 6 | . . . . . . . . . . . 3 . . . 2 1 Propulsion 66 | 1 4 3 1 1 1 7 5 2 2 3 6 . . 10 16 4 Treads 48 | . 1 3 1 1 1 4 5 . 2 3 4 . . 9 10 4 Leg 6 | . . . . . . . . . . . . . . . 6 . Wheel 12 | 1 3 . . . . 3 . 2 . . 2 . . 1 . . Hover . | . . . . . . . . . . . . . . . . . Flight . | . . . . . . . . . . . . . . . . . Utility 199 | 1 2 3 . 2 . 12 12 8 . 14 15 2 . 30 86 12 Device 137 | . . . . . . 8 11 5 . 11 13 1 . 23 57 8 Storage 16 | 1 2 2 . 1 . . . . . . . . . 1 8 1 Processor 3 | . . . . . . . . . . . 1 . . . 2 . Hackware . | . . . . . . . . . . . . . . . . . Protection 43 | . . 1 . 1 . 4 1 3 . 3 1 1 . 6 19 3 Artifact . | . . . . . . . . . . . . . . . . . Weapon 121 | . 3 3 2 1 4 10 2 4 . 6 17 6 . 11 41 11 Energy Gun 42 | . . 1 . . 2 2 1 2 . 2 3 . . 5 20 4 Energy Cannon 2 | . . . . . . . . . . . . . . . . 2 Ballistic Gun 47 | . 3 2 1 1 . 6 . 2 . 1 7 3 . 5 13 3 Ballistic Cannon 2 | . . . . . 1 1 . . . . . . . . . . Launcher 12 | . . . 1 . 1 1 1 . . 1 2 2 . . 1 2 Special Weapon . | . . . . . . . . . . . . . . . . . Impact Weapon . | . . . . . . . . . . . . . . . . . Slashing Weapon 8 | . . . . . . . . . . 2 5 1 . . . . Piercing Weapon 8 | . . . . . . . . . . . . . . 1 7 . Special Melee Weapon . | . . . . . . . . . . . . . . . . . Unidentified Prototypes 29 | . . 1 . . . 3 . 5 . 3 4 . . 2 8 3 Parts Lost 86 | . 2 . 1 . 4 2 1 . 2 . 3 1 . 8 48 14 Power 4 | . 1 . . . . . . . . . . . . . 2 1 Propulsion 23 | . . . 1 . 1 . 1 . 2 . 2 . . 2 11 3 Utility 25 | . . . . . . . . . . . 1 . . 3 17 4 Weapon 34 | . 1 . . . 3 2 . . . . . 1 . 3 18 6 Highest Loss Streak 12 | . 1 . 1 . 4 1 1 . 2 . 1 1 . 3 12 7 Average Slot Usage (%) 96 | . 99 98 100 100 97 98 100 100 100 99 99 100 100 94 93 80 Engine 4 | . 13 5 11 11 11 5 6 6 6 6 . 5 5 2 . . Core 1 | . . 5 . . . . . . . . . . . 2 3 . Treads 19 | . 11 22 22 22 21 20 25 21 20 20 21 17 17 16 16 14 Leg 1 | . 2 . . . . . . . . . . . . . 4 . Wheel 7 | . 14 11 11 11 11 13 7 11 13 13 7 11 11 5 . . Device 7 | . . . . . . 3 7 6 6 6 10 8 5 12 13 16 Storage 21 | . 28 24 33 32 33 20 20 20 20 20 17 17 17 15 15 18 Processor 3 | . . . . . . . . . . . 5 5 5 5 10 3 Protection 5 | . . 7 . . . 8 5 6 6 5 4 7 11 11 4 3 Energy Gun 5 | . 1 . . . 1 6 1 16 13 8 6 9 5 5 11 3 Ballistic Gun 14 | . 26 21 21 22 13 15 17 9 13 16 11 8 17 14 7 5 Naked Turns . | . . . . . . . . . . . . . . . . . Heaviest Build 165 | 14 43 64 64 64 67 92 100 91 90 93 99 97 97 112 150 165 Greatest Support 225 | 20 20 12 12 20 12 28 102 102 24 24 126 24 24 164 173 225 Greatest Overweight (x) 8 | . 3 5 5 5 5 4 3 3 3 3 8 4 4 4 5 . Average Overweight (x) 2 | . 1 3 5 4 5 2 1 2 3 3 3 3 4 1 . . Largest Inventory Capacity 32 | 8 16 22 22 22 22 22 22 22 22 22 22 22 22 22 32 28 Average Capacity 21 | 7 10 17 22 21 22 22 22 22 22 22 22 22 22 22 25 28 Most Carried 28 | 8 13 22 22 22 22 22 22 22 21 22 22 22 22 22 28 28 Average Carried 20 | 7 9 16 21 21 21 21 21 21 20 21 21 21 22 21 23 22 Final Capacity 28 | 8 16 22 22 22 22 22 22 22 22 22 22 22 22 22 28 28 Final Carried 23 | 8 12 22 21 22 22 22 22 21 19 22 22 22 22 19 22 23 Class Distribution -------------------- 27% | Hauler-Mutant 17% | Hauler-Tank 16% | Scavenger-Tank 12% | Mutant 6% | Scavenger-Skirmisher 5% | Scavenger-Gunner 5% | Scavenger-Mutant 4% | Commander-Tank Dominant Class ---------------- Mutant | -10/Materials Mutant | -9/Materials Hauler-Mutant | -9/Mines Hauler-Mutant | -7/Zion Hauler-Mutant | -6/Proximity Caves Hauler-Tank | -6/Factory Commander-Tank | -6/Extension Hauler-Tank | -6/Cetus Scavenger-Tank | -6/Archives Hauler-Tank | -6/Hub_04(d) Hauler-Mutant | -5/Factory Hauler-Mutant | -5/Upper Caves Scavenger-Tank | -5/Upper Caves Scavenger-Tank | -4/Factory Scavenger-Skirmisher | -4/Armory Hauler-Mutant | -3/Research Resources | -11 -10 -9 -9 -7 -6 -6 -6 -6 -6 -6 -5 -5 -5 -4 -4 -3 ----------- Run | Scr Mat Mat Min Zio Pro Fac Ext Cet Arc Hub Fac Upp Upp Fac Arm Res Matter Collected 8536 | 238 343 246 146 40 265 628 664 295 . 516 854 110 . 1355 2144 692 Remotely . | . . . . . . . . . . . . . . . . . Salvage Created 15534 | 124 442 582 268 . 538 742 694 201 . 1098 1235 135 . 2674 4948 1853 Parts 715 | 12 22 52 10 . 19 24 33 5 . 58 50 5 . 125 206 94 Haulers Intercepted 5 | . 1 . . . . . . . . 1 1 . . 2 . . Recyclers Shooed 7 | . 2 . . . . . . . . 1 1 . . 2 . 1 Parts Field Recycled 10 | . . . . . . . . . . . . . . . 10 . Retrieved Matter 222 | . . . . . . . . . . . . . . . 222 . Parts Self-Destructed 16 | . . . . . 14 . . . . . . 2 . . . . Prevented 8 | . . . . . 8 . . . . . . . . . . . Kills | -11 -10 -9 -9 -7 -6 -6 -6 -6 -6 -6 -5 -5 -5 -4 -4 -3 ------- Run | Scr Mat Mat Min Zio Pro Fac Ext Cet Arc Hub Fac Upp Upp Fac Arm Res Combat Hostiles Destroyed 259 | . 11 12 7 . 9 11 10 2 1 16 23 6 . 37 84 30 Melee 1 | . . . . . . . . . . . . . . . 1 . Guns 218 | . 11 12 5 . 4 10 7 2 1 16 20 1 . 37 77 15 Cannons 12 | . . . . . 2 . 2 . . . . . . . . 8 AOE 25 | . . . 2 . 3 1 1 . . . 3 5 . . 5 5 Classes Destroyed 19 | 2 4 3 1 . 2 1 . . . 1 1 . . . 4 . Worker 12 | . . 1 . . . 2 1 . . 4 1 . . 1 . 2 Builder 15 | . . . . . . . . . . 3 2 . . 4 . 6 Tunneler 3 | 2 . . . . . . 1 . . . . . . . . . Hauler 5 | . 1 . . . . . . . . 1 1 . . 2 . . Recycler 5 | 1 . . . . . 1 1 . . . 1 . . 1 . . Operator 5 | . 2 1 . . . . 1 . . . 1 . . . . . Watcher 5 | . . 1 . . . . . . . 1 1 . . . 2 . Swarmer 44 | . 3 3 . . . . 2 . . 4 5 5 . 7 11 4 Saboteur 9 | . . . . . . . . . . . . . . . 8 1 Grunt 97 | . 8 2 6 . 6 5 5 . . 5 5 . . 11 33 11 Brawler 12 | . . . . . 1 . . . . . . . . . 8 3 Duelist 6 | . . . 1 . . 1 . . . . 1 . . . 2 1 Protector 3 | . . . . . . . . . . . . . . . 2 1 Sentry 30 | . . 7 . . . 1 3 . 1 6 2 1 . 4 3 2 Demolisher 1 | . . . . . . . . . . . . . . . 1 . Specialist 4 | . . . . . . . . . . . . . . . 4 . Hunter 14 | . . . . . 2 1 . . . 1 2 . . 4 2 2 Programmer 32 | . . . . . . 3 . 1 . . 2 . . 11 10 5 Cetus Guard 1 | . . . . . . . . 1 . . . . . . . . Assembled 6 | . . . . . . . . . . . 6 . . . . . Best Kill Streak 15 | 2 3 4 4 . 2 7 3 1 1 6 7 5 . 13 15 15 Combat Bots Only 15 | . 3 3 4 . 2 5 3 1 1 4 6 5 . 11 15 9 Max Kills in Single Turn 5 | 1 1 2 2 . 1 2 2 1 1 3 3 5 . 3 3 3 Gunslinging 1 | . . 1 1 . . . . . . 1 1 . . 1 1 . Exploded 5 | . . . 2 . 1 1 1 . . . 3 5 . . 3 2 Melee 1 | . . . . . . . . . . . . . . . 1 . Uniques/NPCs Destroyed 1 | . . . . . . . . 1 . . . . . . . . A7 (-6/Cetus) Combat | -11 -10 -9 -9 -7 -6 -6 -6 -6 -6 -6 -5 -5 -5 -4 -4 -3 -------- Run | Scr Mat Mat Min Zio Pro Fac Ext Cet Arc Hub Fac Upp Upp Fac Arm Res Damage Taken 24705 | . 393 510 510 . 1466 816 701 276 230 521 1176 92 . 4523 9318 4173 Core 1635 | . 87 52 42 . 217 52 3 127 . 54 34 . . 303 423 241 Absorbed by Shields 816 | . . . . . . 52 268 32 . 34 430 . . . . . Reduced by Siege Mode 945 | . . . . . . . . . . . . . . 99 474 372 Core Remaining (%) 65 | 100 65 . . . 22 . . . . 72 . . 96 . 36 . Volleys Fired 601 | 6 49 26 14 . 42 27 27 23 1 28 50 3 . 79 155 71 Largest 4 | 2 2 2 2 . 2 4 4 4 2 4 4 4 . 4 4 4 Hottest 376 | 60 60 46 46 . 92 185 189 270 70 225 196 196 . 214 376 278 Shots Fired 1853 | 12 97 52 27 . 74 102 103 82 2 103 157 9 . 289 536 208 Gun 1747 | 12 97 52 26 . 60 95 76 81 2 103 156 8 . 289 533 157 Cannon 84 | . . . . . 6 7 26 1 . . . . . . . 44 Launcher 22 | . . . 1 . 8 . 1 . . . 1 1 . . 3 7 Special . | . . . . . . . . . . . . . . . . . Kinetic 1129 | 6 82 52 26 . 63 76 94 38 2 68 98 5 . 225 212 82 Thermal 601 | 6 15 . . . 3 11 8 44 . 35 41 1 . 49 306 82 Explosive 14 | . . . 1 . . . 1 . . . 1 1 . . 3 7 Electromagnetic 109 | . . . . . 8 15 . . . . 17 2 . 15 15 37 Robot Hit Streak 44 | 8 8 14 21 . 12 15 13 11 4 20 16 9 . 30 44 32 Robot Miss Streak 6 | 1 3 1 1 . 2 6 3 3 . 3 2 . . 4 4 2 Penetration Max 2 | . . . . . . 1 1 1 . 1 1 . . 1 2 1 Secondary Targets 52 | . 2 1 2 . 2 . . . . 2 6 . . 9 24 4 Max Gunslinging Chain 2 | . 1 1 1 . 1 . . . . 1 2 . . 1 2 1 Shots Hit Robots 1382 | 10 66 42 23 . 56 73 73 61 1 69 113 8 . 210 415 162 Core Hits 714 | 4 23 22 9 . 27 51 45 23 1 42 59 8 . 104 212 84 Critical Hits 65 | . . 1 . . . . 1 6 . 9 5 1 . 23 14 5 Critical Kills 22 | . . . . . . . . 1 . 5 . 1 . 6 7 2 Critical Parts Destroyed 35 | . . 1 . . . . 1 4 . 4 4 . . 12 6 3 Melee Attacks 63 | . . . . . . . . . . 10 23 4 . 2 24 . Impact . | . . . . . . . . . . . . . . . . . Slashing 37 | . . . . . . . . . . 10 23 4 . . . . Piercing 26 | . . . . . . . . . . . . . . 2 24 . Sneak Attacks . | . . . . . . . . . . . . . . . . . Combat Hostiles . | . . . . . . . . . . . . . . . . . Follow-up Attacks . | . . . . . . . . . . . . . . . . . Damage Inflicted 39225 | 125 873 660 526 . 1013 1990 2064 1701 22 2069 2913 589 . 5695 12252 6733 Guns 31522 | 125 873 660 356 . 574 1591 1252 1663 22 1775 2602 177 . 5615 11263 2974 Cannons 2535 | . . . . . 130 76 664 38 . . . . . . . 1627 Explosions 5049 | . . . 170 . 309 323 116 . . 245 311 412 . 56 989 2118 Melee 49 | . . . . . . . . . . 49 . . . . . . Ramming 70 | . . . . . . . 32 . . . . . . 24 . 14 Kinetic 18442 | 81 763 660 356 . 649 1252 1770 717 22 1026 1395 113 . 4083 3991 1564 Thermal 14053 | 44 110 . . . 55 493 146 984 . 749 824 24 . 1268 6972 2384 Explosive 3960 | . . . 170 . . . 116 . . . 311 412 . . 989 1962 Electromagnetic 2651 | . . . . . 309 245 . . . 245 383 40 . 320 300 809 Impact . | . . . . . . . . . . . . . . . . . Slashing 49 | . . . . . . . . . . 49 . . . . . . Piercing . | . . . . . . . . . . . . . . . . . Highest Corruption 25 | . . . 3 3 3 2 2 1 1 2 3 3 . 4 25 17 Average Corruption 2 | . . . 3 3 2 1 1 1 1 1 2 2 . 2 4 2 Corruption Purged 22 | . . . . . . . 2 . . . . 3 . 6 11 . Effects 143 | . . . 7 . 5 3 3 1 . 6 11 4 . 9 87 7 Message Errors 26 | . . . 3 . . 1 2 . . 1 3 2 . 2 11 1 Matter Fused 21 | . . . 1 . . . . . . . 3 . . 2 15 . Heat Flow Errors 13 | . . . 1 . 1 1 . . . . . 2 . . 8 . Energy Discharges 16 | . . . 1 . 2 . 1 1 . . 1 . . . 8 2 Data Loss (minor) 12 | . . . . . 2 . . . . 1 1 . . 1 7 . Data Loss (major) 3 | . . . . . . . . . . . . . . . 3 . Misfires 1 | . . . . . . . . . . . . . . . 1 . Targeting Errors 42 | . . . 1 . . 1 . . . 2 2 . . 4 28 4 Weapon Failures 9 | . . . . . . . . . . 2 1 . . . 6 . Overload Shots . | . . . . . . . . . . . . . . . . . Overflow Damage 467 | . . . . . . 137 8 . . 44 8 . . . 106 164 Projectiles 97 | . . . . . . . . . . . . . . . . 97 Explosions 366 | . . . . . . 137 4 . . 44 8 . . . 106 67 Melee 4 | . . . . . . . 4 . . . . . . . . . Knockbacks 17 | . . . . . 2 4 11 . . . . . . . . . Impact . | . . . . . . . . . . . . . . . . . Kinetic 15 | . . . . . 2 4 9 . . . . . . . . . Secondary 2 | . . . . . . . 2 . . . . . . . . . Self-Inflicted Damage 422 | . . . . . 37 117 16 . . 101 . . . . 94 57 Shots 11 | . . . . . 3 3 . . . 1 . . . . 3 1 Rammed 5 | . . . . . . . 2 . . . . . . 2 . 1 Targets Rammed 5 | . . . . . . . 2 . . . . . . 2 . 1 Kicked . | . . . . . . . . . . . . . . . . . Crushed . | . . . . . . . . . . . . . . . . . Highest Temperature 711 | . 24 41 270 . 130 528 210 711 . 306 282 151 . 366 354 412 Average Temperature 99 | . 9 14 103 . 46 152 81 152 . 83 79 59 . 120 87 111 Received Heat Transfer 4182 | . 174 147 33 . 243 117 170 18 . 105 190 9 . 822 1608 546 Effects 21 | . . . . . . 5 . 8 . . . . . 3 2 3 Shutdowns 5 | . . . . . . 3 . 1 . . . . . 1 . . Energy Bleed 4 | . . . . . . . . 1 . . . . . . . 3 Interference 4 | . . . . . . . . . . . . . . 2 2 . Matter Decay 1 | . . . . . . 1 . . . . . . . . . . Damage (minor) 3 | . . . . . . 1 . 2 . . . . . . . . Damage (major) 3 | . . . . . . . . 3 . . . . . . . . Damage (core) 1 | . . . . . . . . 1 . . . . . . . . Siege Activations 22 | . . . . . . . . . . . . . . 4 14 4 Total Turns 538 | . . . . . . . . . . . . . . 131 311 96 Longest Duration 60 | . . . . . . . . . . . . . . 60 57 51 Robots Corrupted 2 | . . . . . . . . . . . . . . . . 2 Combat Hostiles 2 | . . . . . . . . . . . . . . . . 2 Parts Fried 13 | . . . . . . . . . . 3 2 . . 1 1 6 Impact Corruptions 1 | . . . . . . . 1 . . . . . . . . . Robots Melted 1 | . . . . . . . . . . . . . . . 1 . Combat Hostiles 1 | . . . . . . . . . . . . . . . 1 . Parts Melted 34 | . . . . . . . 2 4 . 1 4 . . 1 15 7 Heat Transferred 19001 | 100 250 . . . 111 483 222 1195 . 1320 1516 37 . 1821 9578 2368 Parts Sabotaged 2 | . . . . . . . . . . . . . . . 2 . Parts Stolen . | . . . . . . . . . . . . . . . . . Parts Stripped . | . . . . . . . . . . . . . . . . . Power Chain Reactions . | . . . . . . . . . . . . . . . . . Missiles Intercepted . | . . . . . . . . . . . . . . . . . Alert | -11 -10 -9 -9 -7 -6 -6 -6 -6 -6 -6 -5 -5 -5 -4 -4 -3 ------- Run | Scr Mat Mat Min Zio Pro Fac Ext Cet Arc Hub Fac Upp Upp Fac Arm Res Peak Influence 1475 | 15 361 170 137 . . 304 501 483 490 457 436 . . 699 1475 1412 Average Influence 404 | 8 157 49 49 . . 133 265 352 365 309 305 . . 303 856 891 Maximum Alert Level 4 | . 1 . . . . 1 2 2 2 2 2 . . 2 4 4 Low Security (%) 35 | 100 59 100 100 . . 75 47 . 28 10 10 . . 36 . . Level 1 29 | . 40 . . . . 24 32 71 5 84 69 . . 43 10 . Level 2 12 | . . . . . . . 19 28 65 4 20 . . 20 19 . Level 3 16 | . . . . . . . . . . . . . . . 48 89 Level 4 5 | . . . . . . . . . . . . . . . 22 10 Level 5 . | . . . . . . . . . . . . . . . . . High Security . | . . . . . . . . . . . . . . . . . Max Security . | . . . . . . . . . . . . . . . . . Squads Dispatched 42 | . 4 . 1 . . 3 2 . . 4 3 . . 7 10 8 Investigation 5 | . 2 . . . . 1 1 . . . . . . . . 1 Extermination 15 | . . . . . . 1 . . . 1 2 . . 5 5 1 Reinforcement 12 | . 2 . . . . 1 1 . . 3 1 . . 2 . 2 Assault 9 | . . . 1 . . . . . . . . . . . 5 3 Garrison 1 | . . . . . . . . . . . . . . . . 1 Intercept . | . . . . . . . . . . . . . . . . . Construction Impeded 3 | . . . . . . . . . . 1 1 . . . . 1 Haulers Reinforced 4 | . . . . . . . . . . 2 . . . 2 . . Stealth | -11 -10 -9 -9 -7 -6 -6 -6 -6 -6 -6 -5 -5 -5 -4 -4 -3 --------- Run | Scr Mat Mat Min Zio Pro Fac Ext Cet Arc Hub Fac Upp Upp Fac Arm Res Distress Signals 19 | . 1 1 . . . 1 1 2 . . 3 . . 3 5 2 Communications Jammed . | . . . . . . . . . . . . . . . . . Distress Signals . | . . . . . . . . . . . . . . . . . Times Spotted 402 | . 21 14 15 . 11 16 32 13 7 18 38 6 . 59 110 42 Peak Tracking Total 11 | . 4 4 5 . 4 6 4 5 8 4 5 5 . 11 10 9 Tactical Retreats 12 | . 2 1 . . . . 1 . . . 3 . . 3 2 . Traps | -11 -10 -9 -9 -7 -6 -6 -6 -6 -6 -6 -5 -5 -5 -4 -4 -3 ------- Run | Scr Mat Mat Min Zio Pro Fac Ext Cet Arc Hub Fac Upp Upp Fac Arm Res Traps Triggered 9 | . 2 1 . . . 1 . . . . 2 . . 1 2 . Indirectly . | . . . . . . . . . . . . . . . . . Trap Hack Attempts . | . . . . . . . . . . . . . . . . . Triggered . | . . . . . . . . . . . . . . . . . Disarmed . | . . . . . . . . . . . . . . . . . Reprogrammed . | . . . . . . . . . . . . . . . . . Reused . | . . . . . . . . . . . . . . . . . Traps Extracted . | . . . . . . . . . . . . . . . . . Installed . | . . . . . . . . . . . . . . . . . Triggered 2 | . . . 1 . . . . . . . . . 1 . . . Machines | -11 -10 -9 -9 -7 -6 -6 -6 -6 -6 -6 -5 -5 -5 -4 -4 -3 ---------- Run | Scr Mat Mat Min Zio Pro Fac Ext Cet Arc Hub Fac Upp Upp Fac Arm Res Machines Disabled 37 | . 2 . . . . 6 2 1 . 7 1 . . 4 12 2 Max in Single Turn 6 | . 1 . . . . 5 . 1 . 6 1 . . 1 1 1 Garrison Access 2 | . . . . . . . . . . . . . . . . 2 Network Hub 1 | . . . . . . . . . . 1 . . . . . . Machines Sabotaged . | . . . . . . . . . . . . . . . . . Garrisons Compromised . | . . . . . . . . . . . . . . . . . Overloaded Fab Kills . | . . . . . . . . . . . . . . . . . Fab Network Shutdowns . | . . . . . . . . . . . . . . . . . Hacking | -11 -10 -9 -9 -7 -6 -6 -6 -6 -6 -6 -5 -5 -5 -4 -4 -3 --------- Run | Scr Mat Mat Min Zio Pro Fac Ext Cet Arc Hub Fac Upp Upp Fac Arm Res Machines Accessed 43 | . 5 12 . . 1 4 7 . . . 2 . . 2 7 3 Terminals 28 | . 5 12 . . 1 1 7 . . . . . . 1 1 . Fabricators 5 | . . . . . . 1 . . . . . . . . 4 . Repair Stations 4 | . . . . . . 1 . . . . 1 . . 1 1 . Recycling Units 2 | . . . . . . . . . . . . . . . 1 1 Scanalyzers 1 | . . . . . . . . . . . 1 . . . . . Garrison Access 3 | . . . . . . 1 . . . . . . . . . 2 Total Hacks 140 | . 19 44 . . 3 10 12 . . . 15 . . 7 23 7 Successful 74 | . 14 26 . . 1 4 6 . . . 9 . . 2 10 2 Failed 66 | . 5 18 . . 2 6 6 . . . 6 . . 5 13 5 Catastrophic 8 | . . 1 . . . 1 . . . . 1 . . 2 2 1 Database Lockouts . | . . . . . . . . . . . . . . . . . Manual 59 | . 13 28 . . 2 3 . 1 . . 4 . . 4 . 4 Terminals 99 | . 19 44 . . 3 4 12 . . . 6 . . 4 5 2 Fabricators 14 | . . . . . . 1 . . . . . . . . 13 . Repair Stations 16 | . . . . . . 3 . . . . 6 . . 3 4 . Recycling Units 2 | . . . . . . . . . . . . . . . 1 1 Scanalyzers 3 | . . . . . . . . . . . 3 . . . . . Garrison Access 6 | . . . . . . 2 . . . . . . . . . 4 Terminal Hacks 35 | . 10 15 . . 1 1 6 . . . 2 . . . . . Record 1 | . . . . . 1 . . . . . . . . . . . Part Schematic 2 | . 2 . . . . . . . . . . . . . . . Robot Analysis 1 | . 1 . . . . . . . . . . . . . . . Prototype ID Bank 12 | . 3 9 . . . . . . . . . . . . . . Open Door 7 | . . . . . . 1 6 . . . . . . . . . Emergency Access Points 1 | . 1 . . . . . . . . . . . . . . . Alert Level 1 | . . . . . . . . . . . 1 . . . . . Unreport Threat 5 | . 1 3 . . . . . . . . 1 . . . . . Locate Traps 4 | . 2 2 . . . . . . . . . . . . . . Hauler Manifests 1 | . . 1 . . . . . . . . . . . . . . Fabricator Hacks 8 | . . . . . . 1 . . . . . . . . 7 . Load Schematic 4 | . . . . . . . . . . . . . . . 4 . Build 4 | . . . . . . 1 . . . . . . . . 3 . Repair Station Hacks 10 | . . . . . . 2 . . . . 4 . . 2 2 . Scan Component 5 | . . . . . . 1 . . . . 2 . . 1 1 . Repair 5 | . . . . . . 1 . . . . 2 . . 1 1 . Recycling Unit Hacks 1 | . . . . . . . . . . . . . . . 1 . Report Inventory 1 | . . . . . . . . . . . . . . . 1 . Scanalyzer 2 | . . . . . . . . . . . 2 . . . . . Insert Component 2 | . . . . . . . . . . . 2 . . . . . Garrison Access Hacks 1 | . . . . . . . . . . . . . . . . 1 Seal Access 1 | . . . . . . . . . . . . . . . . 1 Unauthorized Hacks 17 | . 4 11 . . . . . . . . 1 . . . . 1 Terminals 16 | . 4 11 . . . . . . . . 1 . . . . . Track 12 | . 2 9 . . . . . . . . 1 . . . . . Botnet 4 | . 2 2 . . . . . . . . . . . . . . Fabricators . | . . . . . . . . . . . . . . . . . Repair Stations . | . . . . . . . . . . . . . . . . . Recycling Units . | . . . . . . . . . . . . . . . . . Scanalyzers . | . . . . . . . . . . . . . . . . . Garrison Access 1 | . . . . . . . . . . . . . . . . 1 Jam 1 | . . . . . . . . . . . . . . . . 1 Data Cores Recovered 2 | . . 1 . . . . 1 . . . . . . . . . Used 1 | . . 1 . . . . . . . . . . . . . . Hacking Detections 34 | . 3 10 . . 1 4 3 . . . 3 . . 3 5 2 Full Trace Events 2 | . . . . . . 1 1 . . . . . . . . . Feedback Events . | . . . . . . . . . . . . . . . . . Feedback Blocked . | . . . . . . . . . . . . . . . . . Robot Schematics Acquired . | . . . . . . . . . . . . . . . . . Robots Built . | . . . . . . . . . . . . . . . . . Matter . | . . . . . . . . . . . . . . . . . Time . | . . . . . . . . . . . . . . . . . Total Robot Build Rating . | . . . . . . . . . . . . . . . . . Part Schematics Acquired 2 | . 2 . . . . . . . . . . . . . . . Parts Built 4 | . . . . . . 1 . . . . . . . . 3 . Matter 562 | . . . . . . 256 . . . . . . . . 306 . Time 131 | . . . . . . 64 . . . . . . . . 67 . Total Part Build Rating 11 | . . . . . . 8 . . . . . . . . 3 . Parts Repaired 5 | . . . . . . 1 . . . . 2 . . 1 1 . Time 396 | . . . . . . 32 . . . . 207 . . 108 49 . Parts Recycled . | . . . . . . . . . . . . . . . . . Recycled Matter . | . . . . . . . . . . . . . . . . . Retrieved Matter . | . . . . . . . . . . . . . . . . . Retrieved Components . | . . . . . . . . . . . . . . . . . Parts Scanalyzed 1 | . . . . . . . . . . . 1 . . . . . Part Schematics Acquired . | . . . . . . . . . . . . . . . . . Parts Damaged . | . . . . . . . . . . . . . . . . . Bothacking | -11 -10 -9 -9 -7 -6 -6 -6 -6 -6 -6 -5 -5 -5 -4 -4 -3 ------------ Run | Scr Mat Mat Min Zio Pro Fac Ext Cet Arc Hub Fac Upp Upp Fac Arm Res Used RIF Installer . | . . . . . . . . . . . . . . . . . Robots Hacked . | . . . . . . . . . . . . . . . . . Non-combat . | . . . . . . . . . . . . . . . . . Combat . | . . . . . . . . . . . . . . . . . Robot Hacks Applied . | . . . . . . . . . . . . . . . . . Relay Couplers Released . | . . . . . . . . . . . . . . . . . Robots Rewired 14 | . . . . . . . 14 . . . . . . . . . Allies Hacked 1 | . . . . . . . . 1 . . . . . . . . Hacks Repelled . | . . . . . . . . . . . . . . . . . Allies | -11 -10 -9 -9 -7 -6 -6 -6 -6 -6 -6 -5 -5 -5 -4 -4 -3 -------- Run | Scr Mat Mat Min Zio Pro Fac Ext Cet Arc Hub Fac Upp Upp Fac Arm Res Total Allies 41 | . . . 1 4 . . 28 5 3 . . . . . . . Largest Group 17 | . . . 1 4 4 . 17 13 9 . . . . . . . Highest-Rated Group 786 | . . . 31 94 94 . 514 786 779 . . . . . . . Highest-Rated Ally 156 | . . . 31 32 32 . 156 156 122 . . . . . . . Total Orders 40 | . . . . . . 3 9 1 . 9 5 . . 4 8 1 EXPLORE 40 | . . . . . . 3 9 1 . 9 5 . . 4 8 1 Ally Attacks 316 | . . . 3 . 23 . 174 86 30 . . . . . . . Total Damage 8176 | . . . 61 . 449 . 3501 2756 1409 . . . . . . . Kills 56 | . . . . . 3 . 28 14 11 . . . . . . . Allies Corrupted . | . . . . . . . . . . . . . . . . . Allies Melted . | . . . . . . . . . . . . . . . . . Intel | -11 -10 -9 -9 -7 -6 -6 -6 -6 -6 -6 -5 -5 -5 -4 -4 -3 ------- Run | Scr Mat Mat Min Zio Pro Fac Ext Cet Arc Hub Fac Upp Upp Fac Arm Res Robot Analysis Total 1 | . 1 . . . . . . . . . . . . . . . Derelict Logs Recovered 1 | . . . . 1 . . . . . . . . . . . . Drone Launches 40 | . . . . . . 3 9 1 . 9 5 . . 4 8 1 Drone Recoveries 40 | . . . . . . 3 9 1 . 9 5 . . 4 8 1 Exploration | -11 -10 -9 -9 -7 -6 -6 -6 -6 -6 -6 -5 -5 -5 -4 -4 -3 ------------- Run | Scr Mat Mat Min Zio Pro Fac Ext Cet Arc Hub Fac Upp Upp Fac Arm Res Turns Passed 16654 | 92 932 1395 510 1269 765 1243 1472 555 138 843 1327 449 53 1530 3141 940 Spaces Moved 9110 | 65 629 936 316 882 454 838 751 326 102 439 699 333 41 627 1253 419 Core . | . . . . . . . . . . . . . . . . . Treads 2268 | . 28 . . 9 . 3 322 24 . . 104 . . 372 987 419 Legs 275 | 9 . . . . . . . . . . . . . . 266 . Wheels 6567 | 56 601 936 316 873 454 835 429 302 102 439 595 333 41 255 . . Hover . | . . . . . . . . . . . . . . . . . Flight . | . . . . . . . . . . . . . . . . . Fastest Speed 100 | 100 100 120 140 120 140 115 125 120 120 120 120 120 130 130 145 145 Average Speed 135 | 102 114 129 140 140 140 119 139 122 120 120 138 123 130 151 156 145 Slowest Speed 260 | 120 160 140 140 230 140 240 178 159 120 120 170 130 130 182 260 145 Overloaded Moves . | . . . . . . . . . . . . . . . . . Propulsion Burnouts . | . . . . . . . . . . . . . . . . . Robots Hopped . | . . . . . . . . . . . . . . . . . Cave-ins Triggered . | . . . . . . . . . . . . . . . . . Exploration Rate (%) 52 | 4 98 92 70 83 53 24 88 82 85 40 16 53 14 21 58 11 Regions Visited 16 Branch Regions 10 Pre-discovered Areas 3 | . . . . 3 . . . . . . . . . . . . Known Exits Taken 8 | . . . . . . 1 1 1 . 1 1 . 1 1 1 . Unknown Exits Taken 8 | 1 1 1 1 1 1 . . . 1 . . 1 . . . . Scrap Searched 7 | . . . . 2 3 . . . . . . 1 1 . . . Spaces Dug 48 | . . . . . . . . . . 9 23 4 . 2 10 . Terrain Destroyed 589 | . . . 13 . . 64 16 19 . 186 51 27 . 65 73 75 Melee 48 | . . . . . . . . . . 9 23 4 . 2 10 . Projectile 160 | . . . . . . . 2 19 . 18 16 1 . 63 27 14 AOE 381 | . . . 13 . . 64 14 . . 159 12 22 . . 36 61 Actions | -11 -10 -9 -9 -7 -6 -6 -6 -6 -6 -6 -5 -5 -5 -4 -4 -3 --------- Run | Scr Mat Mat Min Zio Pro Fac Ext Cet Arc Hub Fac Upp Upp Fac Arm Res Total 11979 | 78 755 1072 355 911 511 1017 1110 432 115 672 917 357 41 1023 2019 594 Wait 1281 | 1 41 69 23 11 4 76 177 41 11 157 82 8 1 216 315 48 Move 9094 | 64 628 935 315 881 453 837 750 325 101 438 698 332 40 626 1252 419 Hop . | . . . . . . . . . . . . . . . . . Pick Up 210 | 3 13 17 . 10 5 20 8 11 . 3 9 1 . 17 72 21 Fast Attach 70 | 2 1 5 . 2 1 9 . 5 . 9 8 1 . 8 17 2 Attach 113 | . 5 2 1 1 4 9 1 3 2 1 8 1 . 13 47 15 Detach 18 | . . . . . . . . . . 3 4 . . 4 5 2 Swap 221 | . 5 4 2 1 . 14 18 6 . 13 27 6 . 31 83 11 Drop 186 | 2 13 14 . 5 2 25 10 18 . 10 8 1 . 25 49 4 Fire 601 | 6 49 26 14 . 42 27 27 23 1 28 50 3 . 79 155 71 Melee 63 | . . . . . . . . . . 10 23 4 . 2 24 . Ram 2 | . . . . . . . 2 . . . . . . . . . Kick . | . . . . . . . . . . . . . . . . . Crush 3 | . . . . . . . . . . . . . . 2 . 1 Escape Stasis 2 | . . . . . . . 2 . . . . . . . . . Rewire 115 | . . . . . . . 115 . . . . . . . . . Trap . | . . . . . . . . . . . . . . . . . Miscellaneous . | . . . . . . . . . . . . . . . . . Route ------- -11/Scrapyard -10/Materials (discovered 5 exits: *Mat x3 / [*Min x2]) -9/Materials (discovered 4 exits: [*Mat x3] / [*Min]) -9/Mines -7/Zion -6/Proximity Caves -6/Factory (discovered 4 exits: Low x2 / *Ext x2) -6/Extension (discovered 3 exits: *Fac x2 / *Cet) -6/Cetus (discovered 3 exits: *Fac x2 / *Arc) -6/Archives (discovered 2 exits: *Fac / *Hub) -6/Hub_04(d) (discovered 4 exits: *Fac x4) -5/Factory (discovered 6 exits: Fac x4 / *Upp x2) -5/Upper Caves -5/Upper Caves -4/Factory (discovered 7 exits: Res x4 / *Upp x2 / *Arm) -4/Armory -3/Research History --------- Turn | Location | Event 1 | -11/Scrapyard | Discovered new exit (range 3) 93 | -11/Scrapyard | Entered Materials 310 | -10/Materials | Build established: Mutant 539 | -10/Materials | Discovered new exit (range 15) 642 | -10/Materials | Discovered new exit (range 11) 695 | -10/Materials | Discovered new exit (range 7) 869 | -10/Materials | Discovered new exit (range 3) 1003 | -10/Materials | Discovered new exit (range 12) 1025 | -10/Materials | Entered another Materials area 1025 | -9/Materials | Evolved 2 slots: Propulsion x1, Utility x1 1242 | -9/Materials | Discovered new exit (range 3) 1449 | -9/Materials | Discovered new exit (range 16) 1759 | -9/Materials | Discovered new exit (range 16) 2290 | -9/Materials | Discovered new exit (range 7) 2368 | -9/Materials | Build established: Hauler-Mutant 2420 | -9/Materials | Entered Mines 2723 | -9/Mines | Met a Derelict testing a Signal Generator 2914 | -9/Mines | Assembled infested the area 2918 | -9/Mines | A Derelict revealed a hidden shortcut to a safe place 2930 | -9/Mines | Entered Zion 2970 | -7/Zion | System corruption cleaned by Quarantine Array 2989 | -7/Zion | Learned location of Armory (-4) 3069 | -7/Zion | Learned location of Warlord (-5) 3296 | -7/Zion | Visited the Megawrench Repair Shop 3548 | -7/Zion | Gained Derelict followers 3584 | -7/Zion | Learned Factory emergency access door positions 3831 | -7/Zion | Megawrench repaired 6 parts 4128 | -7/Zion | Given the Hacking Drone Bay 4129 | -7/Zion | Found Prototype Device 4169 | -7/Zion | Discovered new exit (range 15) 4175 | -7/Zion | Learned Factory stockpile data 4199 | -7/Zion | Entered Proximity Caves 4199 | -6/Proximity Caves | Accompanied by 4 allies 4300 | -6/Proximity Caves | Spotted B-75 Beast 4465 | -6/Proximity Caves | Core integrity fell below 50% 4802 | -6/Proximity Caves | Lost 4 parts (1n3w) 4939 | -6/Proximity Caves | Discovered new exit (range 8) 4964 | -6/Proximity Caves | Entered Factory 4964 | -6/Factory | Evolved 6 slots: Propulsion x2, Utility x2, Weapon x2 5063 | -6/Factory | Fabricated Adv. Core Analyzer? 5080 | -6/Factory | Repaired Arm. Wheel? 5191 | -6/Factory | Identified Hacking Drone Bay 5264 | -6/Factory | Build established: Hauler-Tank 5574 | -6/Factory | Identified exit to Lower Caves 5574 | -6/Factory | Identified exit to Extension 6207 | -6/Factory | Entered Extension 6261 | -6/Extension | Rescued a captive Derelict 6262 | -6/Extension | Rescued a captive Derelict 6510 | -6/Extension | Rescued a captive Derelict 6511 | -6/Extension | Rescued a captive Derelict 6577 | -6/Extension | Rescued a captive Derelict 6578 | -6/Extension | Rescued a captive Derelict 6712 | -6/Extension | Rescued a captive Derelict 6743 | -6/Extension | Build established: Commander-Tank 6973 | -6/Extension | Spotted B-75 Beast 6984 | -6/Extension | Spotted B-75 Beast 6989 | -6/Extension | Allies destroyed B-75 Beast 7008 | -6/Extension | Allies destroyed B-75 Beast 7055 | -6/Extension | Discovered new exit (range 3) 7142 | -6/Extension | Rescued a captive Derelict 7143 | -6/Extension | Rescued a captive Derelict 7216 | -6/Extension | Rescued a captive Derelict 7217 | -6/Extension | Rescued a captive Derelict 7350 | -6/Extension | Identified exit to Factory 7420 | -6/Extension | Rescued a captive Derelict 7440 | -6/Extension | Identified exit to Cetus 7465 | -6/Extension | Rescued a captive Derelict 7489 | -6/Extension | Rescued a captive Derelict 7530 | -6/Extension | Rescued A7 7547 | -6/Extension | Rescued a captive Derelict 7679 | -6/Extension | Entered Cetus 7679 | -6/Cetus | Accompanied by 13 allies 7684 | -6/Cetus | Acquired a Cetus Manufacturing Module code from A7 7700 | -6/Cetus | Spotted Cetus Guard 7700 | -6/Cetus | Spotted Cetus Guard 7702 | -6/Cetus | Spotted Cetus Guard 7702 | -6/Cetus | Spotted Cetus Guard 7708 | -6/Cetus | Allies destroyed Cetus Guard 7710 | -6/Cetus | Allies destroyed Cetus Guard 7716 | -6/Cetus | Allies destroyed Cetus Guard 7721 | -6/Cetus | Allies destroyed Cetus Guard 7856 | -6/Cetus | Started Cetus Manufacturing Module 7881 | -6/Cetus | Manufactured an Enhanced Grunt 7888 | -6/Cetus | Escorted A7 to Cetus Mainframe 7906 | -6/Cetus | Manufactured an Enhanced Grunt 7915 | -6/Cetus | Identified exit to Archives 7931 | -6/Cetus | Manufactured an Enhanced Grunt 7956 | -6/Cetus | Manufactured an Enhanced Grunt 7981 | -6/Cetus | Manufactured an Enhanced Grunt 7986 | -6/Cetus | Spotted Cetus Guard 7987 | -6/Cetus | Spotted Cetus Guard 7991 | -6/Cetus | Spotted Cetus Guard 8002 | -6/Cetus | Spotted Cetus Guard 8003 | -6/Cetus | Allies destroyed Cetus Guard 8010 | -6/Cetus | Allies destroyed Cetus Guard 8014 | -6/Cetus | Destroyed Cetus Guard 8019 | -6/Cetus | Met Revision 17 8092 | -6/Cetus | Found Prototype Device 8092 | -6/Cetus | Identified Exp. Thermal Shield 8207 | -6/Cetus | Destroyed A7 8210 | -6/Cetus | Extracted ID and sensor layout for unrecognized location from A7's data core 8234 | -6/Cetus | Entered Archives 8234 | -6/Archives | Accompanied by 6 allies 8249 | -6/Archives | Met Zhirov 8255 | -6/Archives | Reinforcements dispatched to Archives 8270 | -6/Archives | Discovered new exit (range 16) 8300 | -6/Archives | Reinforcements dispatched to Archives 8302 | -6/Archives | Zhirov warped through subspace 8320 | -6/Archives | Zhirov detonated Archives 8347 | -6/Archives | Discovered exit to Factory (range 16) 8372 | -6/Archives | Entered Hub_04(d) 8449 | -6/Hub_04(d) | Discovered exit to Factory (range 9) 8690 | -6/Hub_04(d) | Found Prototype Device 8690 | -6/Hub_04(d) | Identified Exp. Terrain Scanner 9211 | -6/Hub_04(d) | Network Hub disabled 9215 | -6/Hub_04(d) | Entered Factory 9215 | -5/Factory | Evolved 2 slots: Utility x2 9592 | -5/Factory | Repaired Centrium Medium Armor Plating 9695 | -5/Factory | Repaired Imp. KE Penetrator? 9809 | -5/Factory | Assembled infested ambush trap array 10146 | -5/Factory | Build established: Hauler-Mutant 10344 | -5/Factory | Identified exit to Upper Caves 10403 | -5/Factory | Identified exit to Factory 10542 | -5/Factory | Entered Upper Caves 10653 | -5/Upper Caves | Spotted B-75 Beast 10697 | -5/Upper Caves | Encountered a Warlord checkpoint 10884 | -5/Upper Caves | Attracted the attention of an 0b10 checkpoint 10979 | -5/Upper Caves | Discovered new exit (range 9) 10991 | -5/Upper Caves | Entered another Upper Caves area 11028 | -5/Upper Caves | Discovered exit to Factory (range 14) 11044 | -5/Upper Caves | Entered Factory 11044 | -4/Factory | Evolved 2 slots: Utility x2 11223 | -4/Factory | Identified exit to Upper Caves 11223 | -4/Factory | Identified exit to Armory 11262 | -4/Factory | Identified exit to Research 11485 | -4/Factory | Build established: Scavenger-Tank 11895 | -4/Factory | Lost 3 parts (1n2w) 12108 | -4/Factory | Repaired Centrium Medium Armor Plating 12237 | -4/Factory | Found Prototype Device 12237 | -4/Factory | Identified Exp. ECM Suite 12420 | -4/Factory | Destroyed 11 combat bots 12574 | -4/Factory | Entered Armory 12904 | -4/Armory | Found Prototype Processor 13058 | -4/Armory | Repaired Imp. KE Penetrator? 13100 | -4/Armory | Lost 3 parts (2n1u) 13451 | -4/Armory | Fabricated Hcp. Storage Unit? 13537 | -4/Armory | Lost 4 parts (1n2u1w) 13587 | -4/Armory | Destroyed 15 combat bots 13824 | -4/Armory | First assault squad dispatched 13852 | -4/Armory | Fabricated Hcp. Storage Unit? 13934 | -4/Armory | Identified Exp. Terrain Scan Processor 13969 | -4/Armory | Build established: Scavenger-Skirmisher 13978 | -4/Armory | Destroyed 8 combat bots 13978 | -4/Armory | Lost 7 parts (2n3u2w) 14272 | -4/Armory | Fabricated Hcp. Storage Unit (x1) 14510 | -4/Armory | Destroyed 9 combat bots 14510 | -4/Armory | Lost 12 parts (1p5n2u4w) 14731 | -4/Armory | Core integrity fell below 50% 14940 | -4/Armory | Lost 3 parts (1u2w) 15144 | -4/Armory | Found Fusion Bomb Launcher 15146 | -4/Armory | Found Fusion Bomb Launcher 15474 | -4/Armory | Destroyed 7 combat bots 15476 | -4/Armory | Lost 3 parts (1u2w) 15622 | -4/Armory | System corruption reached 10% 15673 | -4/Armory | Lost 7 parts (4u3w) 15712 | -4/Armory | Discovered exit to Research (range 3) 15715 | -4/Armory | Entered Research 15715 | -3/Research | Evolved 2 slots: Propulsion x1, Utility x1 15740 | -3/Research | Lost 3 parts (1p1n1u) 15788 | -3/Research | Found Prototype Device 15788 | -3/Research | Identified EM Dispersion Field 15921 | -3/Research | Lost 4 parts (2n2w) 15976 | -3/Research | Build established: Hauler-Mutant 16215 | -3/Research | First assault squad dispatched 16399 | -3/Research | Spotted B-86 Titan 16526 | -3/Research | Garrison activated, responded to threat 16576 | -3/Research | Build established: Hauler-Tank 16585 | -3/Research | Destroyed 9 combat bots 16645 | -3/Research | System corruption reached 10% 16655 | -3/Research | Self-destructed Last Messages --------------- 16650_ P-80 Master resets B-74 Champion, system corruption cleaned. 16651_ K-01 Serf collects debris. 16651_ Slug penetrates Wall. 16651_ K-01 Serf collects debris. 16652_ B-74 Champion destroyed. 16652_ Switching to secondary target: G-67 Veteran. 16652_ Slug penetrates P-80 Master. 16652_ Slug penetrates G-67 Veteran. 16652_ System corrupted: Gamma Rifle targeting data glitched. 16652_ Gamma Rifle destroyed. 16652_ U-05 Engineer lays Concrete. 16653_ System corrupted: Energy discharge (-45). 16653_ Activated siege mode. 16653_ W-44 Eye sends out distress signal. 16654_ K-01 Serf collects debris. 16654_ Slug penetrates Wall. 16654_ Penetrated by Slug. 16655_ U-05 Engineer lays Concrete. 16655_ P-80 Master destroyed. 16655_ K-01 Serf collects debris. Map ----- +----------------------------------------------------+ | ?????????????????????????????????????????????????? | | ?????????????????????????????????????????????????? | | ?????????????????????????????????????????????????? | | ?????????????????????????????????????????????????? | | ?????????????????????????????????????????????????? | | ?????????????????????????????????????????????????? | | ?????????????????????????????????????????????????? | | ?????????????????????????????????????????????????? | | ?????????????????????????????????????????????????? | | ?????????????????????????????????????????????????? | | ?????????????????????????????????????????????????? | | ?????????????????????????????????????????????????? | | ?????????????????????????????????????????????????? | | ?????????????????????????????????????????????????? | | ?????????????????????????????????????????????????? | | ?????????????????# ???????????????????????????? | | ?????????????????# ##############?????????????? | | ?????????????????# # #?????????????? | | ?????????????????# # = #?????????????? | | ??????????????#""# #*%k u ""#?????????????? | | ????????????###T"# # ! ""#?????????????? | | ????????????? #% G#?????????????? | | ??????? ???? = w#p! ""#?????????????? | | ??????? ?? ==%%g*[! [ [ ""#?????????????? | | ?????? ?? !%% #%%u! #?????????????? | | ????? ##########*! #*=@/*% #?????????????? | | ???? # #%! #!%[=%=[ #?????????????? | | #### # = #*[|= k #?????????????? | | # #%[%= #?????????????? | | # ##############?????????????? | | ?# [[ # # # #???????????????????? | | ????# [= # ##???????????????????? | | #??????# [= # #????????????????????? | | #??????# # # ###????????????????????? | | #??????# # #??????????????????????? | | #??????###### ##??????????????????????? | | #???????????## # ##???????????????????????? | | #????????????## # # #????????????????????????? | | #??????########## ###????????##########??????? | | #??????# ?# ############ #??????? | | #??????# # ## """ # ! #??????? | | ######## """ # ## """ #"" #??????? | | # """ # ## """ =#"" #??????? | | !! = #! """ !# ## #"T !#??????? | | *!! # !""" # ## #"" #??????? | | =| +%=""" # ## #"" #??????? | | +### % # * # #? # #??????? | | =!# #%! # #???] ??# #??????? | | =|[# %########## ######+######+########?????? | | # #?????? | +----------------------------------------------------+ Best States ------------- Heat Dissipation 100 Coolant Potential 65 Energy Generation 25 Energy Capacity 1150 Matter Stores 300 Matter Capacity 300 Sight Range 16 Robot Scan Range 16 Terrain Scan Density 1010 Power Amplification 20 Armor Coverage 1350 Resistance: KI 20 Resistance: TH 30 Resistance: EM 75 Core Shielding 30 Propulsion Shielding 90 Phase Shifting 10 Evasion (%) 40 Core Analysis 10 Recoil Reduction 6 Matter Filtering 30 Energy Filtering 50 Particle Charging 25 Item Schematics ----------------- Lrg. Storage Unit | -10/Materials | Hacked Hcp. Storage Unit | -10/Materials | Hacked Robot Schematics ------------------ None Fabricated ------------ Adv. Core Analyzer | x1 | -6/Factory | Preloaded Hcp. Storage Unit | x1 | -4/Armory Hcp. Storage Unit | x1 | -4/Armory Hcp. Storage Unit | x1 | -4/Armory Alien Tech Used ----------------- None Achievements -------------- None Challenges ------------ None Game ------ Seed PointImprovedRay Manual? 0 Play Time 04:53:38 Cumulative 851.0 hours Start 2020.07.11 @ 12:02:26 End 2020.07.12 @ 16:04:24 Sessions 10 Manual Loads 0 Difficulty Rogue Special Mode None Game No. 249 Rogue 249 Adventurer 0 Explorer 0 Win Type - Total 30 Types 21/2/4/3/0/0/0 Lore% 73 Gallery% 85 Achievement% 70 Wizard Run 0 Options --------- ASCII 0 Keyboard 1 Movement Numpad Keybinds 0 Fullscreen 1 Font 24/Smallcaps Map View 76x50 Tactical HUD 1 Map Filters NONE Filters NONE Steam 1 RUN: fa110e08-53c9-4488-9c01-c0fb82d8bdf9